bitfinex-derivatives/quotes_ETHF0:USTF0_20260121
["timestamp","ask_amount","ask_price","bid_price","bid_amount"]
[1769035426913,0.34372414,3018.5,3017.5,0.00332359]
[1769035427219,1.24008092,3018.7,3017.5,0.00332359]
[1769035427418,1.20581816,3018.6,3017.5,0.00332359]
[1769035427613,0.00293131,3018.8,3016.9,1.10517703]
[1769035427614,0.13500389,3018.3,3016.9,0.13997257]
[1769035427819,0.93930703,3017.6,3016.4,0.13997257]
[1769035428020,0.34372414,3017.5,3016.2,0.93930703]
[1769035428220,0.93930703,3017.6,3016.2,0.93930703]
[1769035428723,0.93930703,3017.6,3016.2,0.94195984]
[1769035430618,1.07431092,3017.6,3016.2,0.94195984]
[1769035430926,1.07431092,3017.3,3016.2,0.00265281]
[1769035431512,0.13500389,3017.2,3016.2,0.00265281]
[1769035433523,0.93930703,3017.0,3015.6,0.13997257]
[1769035434622,0.93930703,3017.0,3015.6,0.14268372]
[1769035435719,0.93930703,3016.7,3015.6,0.14268372]
[1769035436522,1.07431092,3017.0,3015.6,0.14268372]
[1769035436930,0.13500389,3017.0,3015.6,0.14268372]
[1769035440324,0.13500389,3017.0,3015.6,0.00271115]
[1769035443428,0.16585,3017.2,3015.6,0.1491856]
[1769035443629,0.14838868,3017.1,3015.6,0.1491856]
[1769035448735,0.16585,3017.2,3015.6,0.1491856]
[1769035449629,1.0901938,3017.5,3015.6,0.1491856]
[1769035449830,6.477,3017.7,3015.7,0.14647445]
[1769035450231,0.85787563,3017.6,3015.7,0.14647445]
[1769035450543,6.477,3017.7,3015.7,0.14647445]
[1769035450839,0.85787314,3017.6,3015.7,0.14647445]
[1769035451041,0.14838868,3017.7,3015.7,0.14647445]
[1769035451237,0.85787252,3017.6,3015.7,0.14647445]
[1769035451443,0.14838868,3017.7,3015.7,0.14647445]
[1769035451639,1.19971379,3017.6,3015.7,0.14647445]
[1769035451841,0.14838868,3017.7,3015.7,0.14647445]
[1769035452042,1.19971212,3017.6,3015.7,0.14647445]
[1769035452241,0.85897592,3017.5,3015.7,0.14647445]
[1769035452439,0.14838868,3017.7,3015.7,0.14647445]
[1769035452647,1.20043022,3017.6,3015.7,0.14647445]
[1769035452841,0.85897498,3017.5,3015.7,0.14647445]
[1769035453045,0.16582,3017.8,3015.8,0.14647445]
[1769035453246,1.20046973,3017.7,3015.8,0.14647445]
[1769035453546,0.16582,3017.8,3015.9,0.14647445]
[1769035453741,1.20122483,3017.7,3016.0,0.14647445]
[1769035453941,0.16582,3017.8,3016.0,0.14647445]
[1769035454142,1.20122975,3017.7,3016.0,0.14647445]
[1769035454344,0.86008452,3017.6,3016.0,0.14647445]
[1769035454542,0.16582,3017.8,3016.0,0.14647445]
[1769035454742,1.20221783,3017.7,3016.0,0.14647445]
[1769035454944,0.86025996,3017.6,3016.0,0.14647445]
[1769035455152,0.16582,3017.8,3016.0,0.14647445]
[1769035455351,1.20354935,3017.7,3016.0,0.14647445]
[1769035455651,1.20354935,3017.6,3016.0,0.14647445]
[1769035455851,0.16582,3017.8,3016.0,0.14647445]
[1769035456051,1.20380287,3017.7,3016.1,0.14647445]
[1769035456252,0.86215986,3017.6,3016.3,0.14647445]
[1769035456554,0.94180512,3018.3,3016.3,0.14647445]
[1769035456747,1.20492128,3018.2,3016.3,0.14647445]
[1769035456948,1.20494939,3018.1,3016.4,0.14647445]
[1769035457149,1.20494939,3018.0,3016.4,0.14647445]
[1769035457354,1.20610173,3017.9,3016.4,0.14647445]
[1769035457547,0.94180512,3018.3,3016.4,0.14647445]
[1769035457749,1.20609778,3018.2,3016.4,0.14647445]
[1769035457948,1.20609778,3018.1,3016.4,0.14647445]
[1769035458155,1.20609778,3018.0,3016.4,0.14647445]
[1769035458453,1.20609783,3017.9,3016.4,0.14647445]
[1769035458751,0.16579,3018.4,3016.4,0.14647445]
[1769035458954,1.2058964,3018.3,3016.4,0.14647445]
[1769035459155,1.2058964,3018.2,3016.4,0.14647445]
[1769035459451,1.2058964,3018.1,3016.7,0.14647445]
[1769035459647,6.32807582,3018.6,3016.7,0.14647445]
[1769035459845,6.32807582,3018.6,3016.8,0.14647445]
[1769035459846,1.20586147,3018.5,3016.8,0.14647445]
[1769035460049,1.20586147,3018.4,3016.8,0.14647445]
[1769035460250,1.20586147,3018.3,3016.8,0.14647445]
[1769035460456,6.32807582,3018.6,3016.8,0.14647445]
[1769035460655,1.20529754,3018.5,3016.8,0.14647445]
[1769035460856,1.20529754,3018.4,3016.8,0.14647445]
[1769035461056,1.20529754,3018.3,3016.8,0.14647445]
[1769035461354,6.32807582,3018.6,3016.8,0.14647445]
[1769035461547,1.20499498,3018.5,3016.9,0.14647445]
[1769035461754,1.20499498,3018.4,3016.9,0.14647445]
[1769035461958,6.32807582,3018.6,3016.9,0.14647445]
[1769035462161,1.20514399,3018.5,3016.9,0.14647445]
[1769035462356,1.20514399,3018.4,3016.9,0.14647445]
[1769035462662,6.32807582,3018.6,3016.9,0.14647445]
[1769035462862,1.20463638,3018.5,3016.9,0.14647445]
[1769035463159,1.20463638,3018.4,3016.9,0.14647445]
[1769035463460,6.32807582,3018.6,3016.9,0.14647445]
[1769035463666,1.20421592,3018.5,3016.9,0.14647445]
[1769035463860,6.32807582,3018.6,3016.9,0.14647445]
[1769035464160,1.20421423,3018.5,3016.9,0.14647445]
[1769035464357,6.32807582,3018.6,3016.9,0.14647445]
[1769035464561,1.20388895,3018.5,3016.9,0.14647445]
[1769035464861,6.32807582,3018.6,3016.9,0.14647445]
[1769035465062,1.20388923,3018.5,3016.9,0.14647445]
[1769035465256,6.32807582,3018.6,3016.9,0.14647445]
[1769035465459,0.86128886,3018.5,3016.9,0.14647445]
[1769035465760,6.32807582,3018.6,3016.9,0.14647445]
[1769035465961,0.86128691,3018.5,3016.9,0.14647445]
[1769035466162,6.32807582,3018.6,3016.9,0.14647445]
[1769035466362,1.2034635,3018.5,3016.9,0.14647445]
[1769035466562,6.32807582,3018.6,3016.9,0.14647445]
[1769035466762,1.2034635,3018.5,3016.9,0.14647445]
[1769035466965,6.32807582,3018.6,3016.9,0.14647445]
[1769035467156,1.20034738,3018.5,3016.9,0.14647445]
[1769035467360,6.32807582,3018.6,3016.9,0.14647445]
[1769035472265,0.85800545,3018.5,3016.9,0.14647445]
[1769035472468,6.32807582,3018.6,3016.9,0.14647445]
[1769035474362,6.4734286,3018.6,3016.9,0.14647445]
[1769035476264,0.34251501,3018.5,3016.9,0.14647445]
[1769035476462,6.4734286,3018.6,3016.9,0.14647445]
[1769035476661,0.34252161,3018.5,3016.9,0.14647445]
[1769035476858,6.4734286,3018.6,3016.9,0.14647445]
[1769035477061,0.34252161,3018.5,3016.9,0.14647445]
[1769035477260,6.4734286,3018.6,3016.9,0.14647445]
[1769035477465,1.20146637,3018.5,3016.9,0.14647445]
[1769035477663,6.4734286,3018.6,3016.9,0.14647445]
[1769035477861,6.32807582,3018.6,3017.0,0.14781691]
[1769035478074,6.32807582,3018.6,3017.1,0.14781691]
[1769035479266,6.4734286,3018.6,3017.1,0.14781691]
[1769035482073,6.32807582,3018.6,3017.1,0.14781691]
[1769035483274,6.32807582,3018.6,3017.2,0.14781691]
[1769035485572,0.00293131,3018.8,3017.2,0.14781691]
[1769035485870,1.2046386,3018.7,3017.2,0.14781691]
[1769035486167,0.34354144,3018.6,3017.2,0.14781691]
[1769035486374,0.00293131,3018.8,3017.2,0.14781691]
[1769035486572,1.20506913,3018.7,3017.2,0.14781691]
[1769035486773,1.20506913,3018.6,3017.2,0.14781691]
[1769035486976,0.00293131,3018.8,3017.2,0.14781691]
[1769035487267,1.20506756,3018.7,3017.2,0.14781691]
[1769035487470,1.20506756,3018.6,3017.2,0.14781691]
[1769035487671,0.00293131,3018.8,3017.2,0.14781691]
[1769035487872,1.20520704,3018.7,3017.2,0.14781691]
[1769035488065,1.20520704,3018.6,3017.2,0.14781691]
[1769035488265,0.34374864,3018.5,3017.2,0.14781691]
[1769035488468,0.14828409,3018.8,3017.2,0.14781691]
[1769035488672,1.20579741,3018.7,3017.2,0.14781691]
[1769035488871,1.20579741,3018.6,3017.2,0.14781691]
[1769035489072,0.34387096,3018.5,3017.2,0.14781691]
[1769035489272,0.14828409,3018.8,3017.2,0.14781691]
[1769035489572,1.20605725,3018.7,3017.2,0.14781691]
[1769035489773,1.20605725,3018.6,3017.2,0.14781691]
[1769035489976,0.34394515,3018.5,3017.2,0.14781691]
[1769035490173,0.14535278,3018.7,3017.2,0.14781691]
[1769035490371,1.20610644,3018.6,3017.2,0.14781691]
[1769035490577,0.34396993,3018.5,3017.2,0.14781691]
[1769035490875,0.14535278,3018.7,3017.2,0.14781691]
[1769035491076,1.20635452,3018.6,3017.2,0.14781691]
[1769035491276,0.34402959,3018.5,3017.2,0.14781691]
[1769035491476,0.14535278,3018.7,3017.2,0.14781691]
[1769035491678,1.20633921,3018.6,3017.2,0.14781691]
[1769035491976,0.34402555,3018.5,3017.2,0.14781691]
[1769035492176,0.14535278,3018.7,3017.2,0.14781691]
[1769035492377,1.20635265,3018.6,3017.2,0.14781691]
[1769035492566,0.14535278,3018.4,3016.8,0.14781691]
[1769035499086,0.14535278,3018.4,3016.9,0.94087306]
[1769035499284,0.14535278,3018.4,3016.9,1.08868997]
[1769035499686,0.94087306,3018.5,3017.0,0.14594049]
[1769035499885,0.34419486,3018.4,3017.0,0.14594049]
[1769035500073,0.94087306,3018.5,3017.0,0.14594049]
[1769035500276,0.34419508,3018.4,3017.0,0.14594049]
[1769035500482,1.07964619,3018.5,3017.0,0.14594049]
[1769035500679,0.34418999,3018.4,3017.0,0.14594049]
[1769035500873,1.07964619,3018.5,3017.0,0.14594049]
[1769035501078,0.34418917,3018.4,3017.0,0.14594049]
[1769035501278,1.07964619,3018.5,3017.0,0.14594049]
[1769035501479,0.34422698,3018.4,3017.0,0.14594049]
[1769035501680,0.49285604,3018.3,3016.9,0.94087306]
[1769035501879,0.14865431,3018.1,3016.9,0.94087306]
[1769035502088,0.34416887,3018.0,3016.9,0.94087306]
[1769035504085,0.14865431,3018.1,3016.9,0.94087306]
[1769035504290,0.34416289,3018.0,3016.9,0.94087306]
[1769035504586,0.14865431,3018.1,3016.9,0.94087306]
[1769035504787,0.34415026,3018.0,3016.9,0.94087306]
[1769035504989,0.14865431,3018.1,3016.9,0.94087306]
[1769035505288,0.34415256,3018.0,3016.9,0.94087306]
[1769035505480,0.14865431,3018.1,3016.9,0.94087306]
[1769035505682,0.34411966,3018.0,3016.9,0.94087306]
[1769035505877,0.14865431,3018.1,3016.9,0.94087306]
[1769035506087,0.34411979,3018.0,3016.9,0.94087306]
[1769035506288,0.94087306,3018.5,3016.9,0.94087306]
[1769035506289,1.08952737,3018.5,3016.9,1.08076907]
[1769035506491,1.20184983,3018.4,3017.0,0.13989601]
[1769035506788,1.20184983,3018.3,3017.0,0.13989601]
[1769035506990,1.20184983,3018.2,3017.0,0.13989601]
[1769035507190,0.34408866,3018.1,3017.0,0.13989601]
[1769035507390,1.08952737,3018.5,3017.0,0.13989601]
[1769035507583,1.20148703,3018.4,3017.0,0.13989601]
[1769035507783,1.20148703,3018.3,3017.0,0.13989601]
[1769035507989,1.20148663,3018.2,3017.0,0.13989601]
[1769035508289,0.34398309,3018.1,3017.0,0.13989601]
[1769035508489,1.08952737,3018.5,3017.0,0.13989601]
[1769035508691,1.20138001,3018.4,3017.0,0.13989601]
[1769035508991,1.20138001,3018.3,3017.0,0.13989601]
[1769035509290,1.20138001,3018.2,3017.0,0.13989601]
[1769035509486,0.3439528,3018.1,3017.0,0.13989601]
[1769035509687,0.94087306,3018.2,3017.0,0.13989601]
[1769035509890,0.34385047,3018.1,3017.0,0.13989601]
[1769035510087,0.94087306,3018.2,3017.0,0.13989601]
[1769035510389,0.34383242,3018.1,3017.0,0.13989601]
[1769035510591,0.94087306,3018.2,3017.0,0.13989601]
[1769035510789,0.34383372,3018.1,3017.0,0.13989601]
[1769035510991,0.94087306,3018.2,3017.0,0.13989601]
[1769035511195,0.34384928,3018.1,3017.0,0.13989601]
[1769035511395,0.94087306,3018.2,3017.0,0.13989601]
[1769035511594,0.34382988,3018.1,3017.0,0.13989601]
[1769035511795,0.94087306,3018.2,3017.0,0.13989601]
[1769035511990,0.34382989,3018.1,3017.0,0.13989601]
[1769035512292,0.94087306,3018.2,3017.0,0.13989601]
[1769035512590,0.34381482,3018.1,3017.0,0.13989601]
[1769035512894,0.94087306,3018.2,3017.0,0.13989601]
[1769035513095,0.34381153,3018.1,3017.0,0.13989601]
[1769035513295,0.94087306,3018.2,3017.0,0.13989601]
[1769035513496,0.34380087,3018.1,3017.0,0.13989601]
[1769035513794,0.94087306,3018.2,3017.0,0.13989601]
[1769035514094,0.34380516,3018.1,3017.0,0.13989601]
[1769035514296,0.94087306,3018.2,3017.0,0.13989601]
[1769035514494,0.3437957,3018.1,3017.0,0.13989601]
[1769035514684,0.94087306,3018.2,3017.0,0.13989601]
[1769035514889,0.34379668,3018.1,3017.0,0.13989601]
[1769035515093,0.94087306,3018.2,3017.0,0.13989601]
[1769035515295,0.34379633,3018.1,3017.0,0.13989601]
[1769035515496,0.94087306,3018.2,3017.0,0.13989601]
[1769035515699,0.34378974,3018.1,3017.0,0.13989601]
[1769035515894,0.94087306,3018.2,3017.0,0.13989601]
[1769035516094,0.34378987,3018.1,3017.0,0.13989601]
[1769035516299,0.94087306,3018.2,3017.0,0.13989601]
[1769035516497,0.34378739,3018.1,3017.0,0.13989601]
[1769035516698,0.94087306,3018.2,3017.0,0.13989601]
[1769035516898,0.34386758,3018.1,3017.0,0.13989601]
[1769035517099,0.94087306,3018.2,3017.0,0.13989601]
[1769035517305,0.34386786,3018.1,3017.0,0.13989601]
[1769035517601,0.94087306,3018.2,3017.0,0.13989601]
[1769035517802,0.34376504,3018.1,3017.0,0.13989601]
[1769035518004,0.94087306,3018.5,3017.0,0.13989601]
[1769035518204,1.20074656,3018.4,3017.0,0.13989601]
[1769035518404,1.20074656,3018.3,3017.0,0.13989601]
[1769035518605,0.94087306,3018.5,3017.0,0.13989601]
[1769035518807,0.3438125,3018.4,3017.0,0.13989601]
[1769035519013,0.94087306,3018.5,3017.0,0.13989601]
[1769035519205,0.34381446,3018.4,3017.0,0.13989601]
[1769035519408,0.94380437,3018.8,3017.1,0.13989601]
[1769035519604,1.20103044,3018.7,3017.3,0.13989601]
[1769035519909,0.94380437,3018.8,3017.3,0.13989601]
[1769035520102,0.34376919,3018.7,3017.3,0.13989601]
[1769035520302,0.94380437,3018.8,3017.3,0.13989601]
[1769035520502,0.34371474,3018.7,3017.6,0.13989601]
[1769035520699,0.00293131,3018.8,3017.6,0.13989601]
[1769035524916,0.00293131,3018.8,3017.9,0.13989601]
[1769035525113,0.00293131,3018.8,3017.9,0.14416846]
[1769035526608,0.94087306,3019.4,3017.9,0.14416846]
[1769035526917,6.477,3019.6,3018.2,0.13989601]
[1769035527117,0.34336337,3019.5,3018.2,0.13989601]
[1769035527412,0.94087306,3019.7,3018.2,0.13989601]
[1769035527613,1.19761275,3019.6,3018.2,0.13989601]
[1769035527820,0.34319436,3019.5,3018.2,0.13989601]
[1769035528011,0.94337296,3019.7,3018.2,0.13989601]
[1769035528208,0.3431547,3019.6,3018.2,0.13989601]
[1769035528415,0.94337296,3019.7,3018.5,0.13989601]
[1769035528612,0.0024999,3019.7,3018.5,0.13989601]
[1769035531723,0.0024999,3019.7,3018.8,0.14837577]
[1769035538724,0.94087306,3020.3,3018.8,0.14837577]
[1769035539824,0.94510237,3020.3,3018.8,0.14837577]
[1769035542830,0.00422931,3020.3,3019.0,1.08924883]
[1769035543029,0.00422931,3020.3,3019.1,0.14837577]
[1769035551740,0.00422931,3020.3,3019.4,0.14837577]
[1769035559441,0.00422931,3020.3,3019.5,0.14837577]
[1769035559848,0.00422931,3020.3,3019.1,0.13617103]
[1769035560349,0.34471766,3020.2,3019.1,0.13617103]
[1769035560552,0.00422931,3020.3,3019.1,0.13617103]
[1769035560847,0.34470656,3020.2,3019.1,0.13617103]
[1769035561047,0.00422931,3020.3,3019.1,0.13617103]
[1769035561248,1.19890395,3020.2,3019.1,0.13617103]
[1769035561449,0.00422931,3020.3,3019.1,0.13617103]
[1769035561750,1.19911052,3020.2,3019.0,1.842]
[1769035561945,0.00422931,3020.3,3019.0,1.842]
[1769035562139,1.19933212,3020.2,3019.0,1.842]
[1769035562343,0.34483511,3020.1,3019.0,1.842]
[1769035562549,0.00422931,3020.3,3019.0,1.842]
[1769035562751,1.19940868,3020.2,3019.0,1.842]
[1769035562950,0.34485711,3020.1,3019.0,1.842]
[1769035563147,0.00422931,3020.3,3019.0,1.842]
[1769035563443,1.19948198,3020.2,3019.0,1.842]
[1769035563642,0.34488249,3020.1,3019.0,1.842]
[1769035563850,0.00422931,3020.3,3019.0,1.842]
[1769035564051,1.19947885,3020.2,3019.0,1.842]
[1769035564353,0.34487731,3020.1,3019.0,1.842]
[1769035564650,0.00422931,3020.3,3019.0,1.842]
[1769035564850,1.19958656,3020.2,3019.0,1.842]
[1769035565151,0.34490883,3020.1,3019.0,1.98761077]
[1769035565348,0.00422931,3020.3,3019.0,1.98761077]
[1769035565547,1.19965865,3020.2,3019.1,0.14561077]
[1769035565752,0.34492942,3020.1,3019.1,0.14561077]
[1769035565945,0.00422931,3020.3,3019.1,0.14561077]
[1769035566146,1.19959867,3020.2,3019.1,0.14561077]
[1769035566445,0.34491181,3020.1,3019.1,0.14561077]
[1769035566644,0.00422931,3020.3,3019.1,0.14561077]
[1769035566939,1.1996687,3020.2,3019.1,0.14561077]
[1769035567142,0.34493194,3020.1,3019.1,0.14561077]
[1769035567343,0.00422931,3020.3,3019.1,0.14561077]
[1769035567543,1.19975573,3020.2,3019.1,0.14561077]
[1769035567743,0.34495695,3020.1,3019.1,0.14561077]
[1769035567952,0.00422931,3020.3,3019.1,0.14561077]
[1769035568154,1.19975843,3020.2,3019.1,0.14561077]
[1769035568449,0.34495773,3020.1,3019.1,0.14561077]
[1769035568650,0.00422931,3020.3,3019.1,0.14561077]
[1769035568852,1.19982298,3020.2,3019.1,0.14561077]
[1769035569055,0.34497628,3020.1,3019.1,0.14561077]
[1769035569255,0.00422931,3020.3,3019.1,0.14561077]
[1769035569448,1.19987607,3020.2,3019.1,0.14561077]
[1769035569648,0.34499154,3020.1,3019.1,0.14561077]
[1769035569845,0.00422931,3020.3,3019.1,0.14561077]
[1769035570157,1.19987631,3020.2,3019.1,0.14561077]
[1769035570356,0.34499161,3020.1,3019.1,0.14561077]
[1769035570656,0.00422931,3020.3,3019.1,0.14561077]
[1769035570854,1.20010063,3020.2,3019.1,0.14561077]
[1769035571054,0.34500807,3020.1,3019.1,0.14561077]
[1769035571252,0.00422931,3020.3,3019.1,0.14561077]
[1769035571452,1.20016593,3020.2,3019.1,0.14561077]
[1769035571654,0.34502706,3020.1,3019.1,0.14561077]
[1769035571848,0.00422931,3020.3,3019.1,0.14561077]
[1769035572150,1.20016723,3020.2,3019.1,0.14561077]
[1769035572350,0.34502722,3020.1,3019.1,0.14561077]
[1769035572558,0.00422931,3020.3,3019.1,0.14561077]
[1769035572850,1.1999225,3020.2,3019.1,0.14561077]
[1769035573149,0.34495802,3020.1,3019.1,0.14561077]
[1769035573346,0.34496943,3020.0,3019.1,0.14561077]
[1769035573559,0.00422931,3020.3,3019.1,0.14561077]
[1769035573760,1.19995052,3020.2,3019.1,0.14561077]
[1769035573954,1.19995052,3020.1,3019.1,0.14561077]
[1769035574156,0.34497058,3020.0,3019.1,0.14561077]
[1769035574357,0.00422931,3020.3,3019.1,0.14561077]
[1769035574558,1.1999388,3020.2,3019.1,0.14561077]
[1769035574758,1.1999388,3020.1,3019.1,0.14561077]
[1769035574958,0.34496727,3020.0,3019.1,0.14561077]
[1769035575161,0.00422931,3020.3,3019.1,0.14561077]
[1769035575362,1.19989062,3020.2,3019.1,0.14561077]
[1769035575561,1.19989062,3020.1,3019.1,0.14561077]
[1769035575764,0.34494609,3020.0,3019.1,0.14561077]
[1769035575961,0.00422931,3020.3,3019.1,0.14561077]
[1769035576260,1.1998641,3020.2,3019.1,0.14561077]
[1769035576460,1.1998641,3020.1,3019.1,0.14561077]
[1769035576655,0.34494576,3020.0,3019.1,0.14561077]
[1769035576857,0.00422931,3020.3,3019.1,0.14561077]
[1769035577057,1.19981212,3020.2,3019.1,0.14561077]
[1769035577264,1.19980691,3020.1,3019.1,0.14561077]
[1769035577457,0.34492433,3020.0,3019.1,0.14561077]
[1769035577661,0.34492433,3019.9,3019.1,0.14561077]
[1769035577865,0.00422931,3020.3,3019.1,0.14561077]
[1769035578054,1.19864032,3020.2,3019.1,0.14561077]
[1769035578359,1.19864032,3020.1,3019.1,0.14561077]
[1769035578662,0.34488641,3020.0,3019.1,0.14561077]
[1769035578861,0.34488641,3019.9,3019.1,0.14561077]
[1769035579063,0.00422931,3020.3,3019.1,0.14561077]
[1769035579256,1.1985376,3020.2,3019.1,0.14561077]
[1769035579453,1.1985376,3020.1,3019.1,0.14561077]
[1769035579660,0.34483209,3020.0,3019.1,0.14561077]
[1769035579860,0.34483209,3019.9,3019.1,0.14561077]
[1769035580069,0.00422931,3020.3,3019.1,0.14561077]
[1769035580268,1.19846115,3020.2,3019.1,0.14561077]
[1769035580462,1.19846115,3020.1,3019.1,0.14561077]
[1769035580662,0.34481201,3020.0,3019.1,0.14561077]
[1769035580862,0.34481201,3019.9,3019.1,0.14561077]
[1769035581162,0.00422931,3020.3,3019.1,0.14561077]
[1769035581363,1.19840696,3020.2,3019.1,0.14561077]
[1769035581668,1.19840696,3020.1,3019.1,0.14561077]
[1769035581870,0.34479778,3020.0,3019.1,0.14561077]
[1769035582170,0.00422931,3020.3,3019.1,0.14561077]
[1769035582371,1.19828593,3020.2,3019.1,0.14561077]
[1769035582667,1.19828593,3020.1,3019.1,0.14561077]
[1769035582871,0.34477067,3020.0,3019.1,0.14561077]
[1769035583169,0.34477067,3019.9,3019.1,0.14561077]
[1769035583470,0.00422931,3020.3,3019.0,1.842]
[1769035583768,1.19799354,3020.2,3019.0,1.842]
[1769035583968,1.19799354,3020.1,3019.0,1.842]
[1769035584170,0.34468573,3020.0,3019.0,1.842]
[1769035584368,0.34468573,3019.9,3019.0,1.842]
[1769035584570,0.00422931,3020.3,3019.0,1.842]
[1769035584771,1.19795009,3020.2,3019.0,1.842]
[1769035584967,1.19795009,3020.1,3019.0,1.842]
[1769035585167,0.34467247,3020.0,3019.0,1.842]
[1769035585471,0.34467247,3019.9,3019.0,1.842]
[1769035585661,0.00422931,3020.3,3019.0,1.842]
[1769035585865,1.197931,3020.2,3019.0,1.842]
[1769035586071,1.197931,3020.1,3019.0,1.842]
[1769035586265,0.34466619,3020.0,3019.0,1.842]
[1769035586466,0.34466619,3019.9,3019.0,1.842]
[1769035586671,0.00422931,3020.3,3019.0,1.842]
[1769035586871,1.1979297,3020.2,3019.0,1.842]
[1769035587072,1.1979297,3020.1,3019.0,1.842]
[1769035587274,0.00422931,3020.3,3019.0,1.842]
[1769035587275,1.1979297,3020.0,3019.0,1.842]
[1769035587474,0.34466526,3019.9,3019.0,1.842]
[1769035587676,0.00422931,3020.3,3019.0,1.98761077]
[1769035587869,1.19816842,3020.2,3019.0,1.98761077]
[1769035588072,1.19816842,3020.1,3019.0,1.842]
[1769035588272,1.19816842,3020.0,3019.0,1.842]
[1769035588474,0.34465277,3019.9,3019.0,1.842]
[1769035588772,0.00422931,3020.3,3019.0,1.842]
[1769035588973,1.19815063,3020.2,3019.0,1.842]
[1769035589173,1.19815063,3020.1,3019.0,1.842]
[1769035589374,1.19815063,3020.0,3019.0,1.842]
[1769035589573,0.34464512,3019.9,3019.0,1.842]
[1769035589776,0.00422931,3020.3,3019.0,1.842]
[1769035589975,1.19815308,3020.2,3019.0,1.842]
[1769035590175,1.19815308,3020.1,3019.0,1.842]
[1769035590377,1.19815308,3020.0,3019.0,1.842]
[1769035590577,0.34464485,3019.9,3019.0,1.842]
[1769035590771,0.00422931,3020.3,3019.0,1.842]
[1769035590970,1.19811749,3020.2,3019.0,1.842]
[1769035591174,1.19811749,3020.1,3019.0,1.842]
[1769035591378,1.19811749,3020.0,3019.0,1.842]
[1769035591676,0.3446342,3019.9,3019.0,1.842]
[1769035591878,0.00422931,3020.3,3019.0,1.842]
[1769035592077,1.19809904,3020.2,3019.0,1.842]
[1769035592379,1.19809904,3020.1,3019.1,0.13872084]
[1769035592580,1.19809904,3020.0,3019.1,0.13872084]
[1769035592780,0.34462816,3019.9,3019.1,0.13872084]
[1769035593079,0.00422931,3020.3,3019.1,0.13872084]
[1769035593379,1.19808111,3020.2,3019.1,0.13872084]
[1769035593575,1.19808111,3020.1,3019.1,0.13872084]
[1769035593775,1.19808111,3020.0,3019.1,0.13872084]
[1769035594073,0.3446211,3019.9,3019.1,0.13872084]
[1769035594272,0.00422931,3020.3,3019.1,0.13872084]
[1769035594479,1.19806653,3020.2,3019.1,0.13872084]
[1769035594677,1.19806653,3020.1,3019.1,0.13872084]
[1769035594881,1.19806653,3020.0,3019.1,0.13872084]
[1769035595074,0.34461647,3019.9,3019.1,0.13872084]
[1769035595274,0.00422931,3020.3,3019.1,0.13872084]
[1769035595473,1.19780918,3020.2,3019.1,0.13872084]
[1769035595777,1.19780918,3020.1,3019.1,0.13872084]
[1769035595968,1.19780918,3020.0,3019.1,0.13872084]
[1769035596172,0.34454145,3019.9,3019.1,0.13872084]
[1769035596369,0.00422931,3020.3,3019.1,0.13872084]
[1769035596673,1.19777523,3020.2,3019.1,0.13872084]
[1769035596969,1.19777523,3020.1,3019.1,0.13872084]
[1769035597281,1.19777523,3020.0,3019.1,0.13872084]
[1769035597486,0.34453088,3019.9,3019.1,0.13872084]
[1769035597784,0.00422931,3020.3,3019.1,0.13872084]
[1769035597982,1.19780692,3020.2,3019.1,0.13872084]
[1769035598184,1.19780692,3020.1,3019.1,0.13872084]
[1769035598385,1.19780692,3020.0,3019.1,0.13872084]
[1769035598585,0.34453892,3019.9,3019.1,0.13872084]
[1769035598783,0.00422931,3020.3,3019.1,0.13872084]
[1769035598983,1.19785746,3020.2,3019.1,0.13872084]
[1769035599282,1.19785746,3020.1,3019.1,0.13872084]
[1769035599478,1.19785746,3020.0,3019.1,0.13872084]
[1769035599683,0.34455233,3019.9,3019.1,0.13872084]
[1769035599873,0.00422931,3020.3,3019.1,0.13872084]
[1769035600078,1.19759786,3020.2,3019.1,0.13872084]
[1769035600281,1.19759786,3020.1,3019.1,0.13872084]
[1769035600483,1.19759786,3020.0,3019.1,0.13872084]
[1769035600683,0.34447633,3019.9,3019.1,0.13872084]
[1769035600984,0.00422931,3020.3,3019.1,0.13872084]
[1769035601179,1.19763528,3020.2,3019.1,0.13872084]
[1769035601383,1.19763528,3020.1,3019.1,0.13872084]
[1769035601586,1.19763528,3020.0,3019.1,0.13872084]
[1769035601785,0.34448543,3019.9,3019.1,0.13872084]
[1769035601986,0.00422931,3020.3,3019.1,0.13872084]
[1769035602186,1.19774269,3020.2,3019.1,0.13872084]
[1769035602386,1.19774269,3020.1,3019.1,0.13872084]
[1769035602589,1.19774269,3020.0,3019.1,0.13872084]
[1769035602788,0.34453721,3019.9,3019.1,0.13872084]
[1769035602988,0.00422931,3020.3,3019.1,0.13872084]
[1769035603292,1.19781735,3020.2,3019.1,0.13872084]
[1769035603590,1.19782171,3020.1,3019.1,0.13872084]
[1769035603789,1.19782171,3020.0,3019.1,0.13872084]
[1769035603986,0.34457334,3019.9,3019.1,0.13872084]
[1769035604291,0.34457334,3019.8,3019.1,0.13872084]
[1769035604490,0.00422931,3020.3,3019.1,0.13872084]
[1769035604687,1.19549652,3020.2,3019.1,0.13872084]
[1769035604992,1.19549652,3020.1,3019.1,0.13872084]
[1769035605291,1.19549652,3020.0,3019.1,0.13872084]
[1769035605480,0.34458523,3019.9,3019.1,0.13872084]
[1769035605683,0.34458523,3019.8,3019.1,0.13872084]
[1769035605884,0.00422931,3020.3,3019.1,0.13872084]
[1769035606084,1.19553347,3020.2,3019.1,0.13872084]
[1769035606293,1.19553347,3020.1,3019.1,0.13872084]
[1769035606494,1.19553347,3020.0,3019.1,0.13872084]
[1769035606687,0.34459549,3019.9,3019.1,0.13872084]
[1769035606986,0.34459549,3019.8,3019.1,0.13872084]
[1769035607185,0.00422931,3020.3,3019.1,0.13872084]
[1769035607381,1.19564248,3020.2,3019.1,0.13872084]
[1769035607587,1.19564248,3020.1,3019.1,0.13872084]
[1769035607896,1.19564248,3020.0,3019.1,0.13872084]
[1769035608094,0.34462479,3019.9,3019.1,0.13872084]
[1769035608288,0.34462479,3019.8,3019.1,0.13872084]
[1769035608485,0.00422931,3020.3,3019.1,0.13872084]
[1769035608693,1.19562601,3020.2,3019.1,0.13872084]
[1769035608893,1.19562601,3020.1,3019.1,0.13872084]
[1769035609189,1.19562601,3020.1,3018.4,2.97984867]
[1769035609190,0.13496749,3019.9,3018.4,2.97984867]
[1769035609397,0.13496749,3018.4,3016.3,7.70259803]
[1769035609692,1.90124531,3017.8,3016.0,0.13872084]
[1769035609894,1.3305935,3017.7,3016.0,0.13872084]
[1769035610082,0.98597338,3017.6,3016.0,0.13872084]
[1769035610282,0.85100589,3017.5,3016.0,0.14280288]
[1769035610496,0.85100589,3017.4,3016.0,0.14280288]
[1769035610697,0.85100589,3017.3,3016.0,0.14280288]
[1769035610896,0.13730935,3017.6,3016.0,0.14280288]
[1769035611097,1.12590339,3017.5,3016.0,0.14280288]
[1769035611397,0.13496749,3017.5,3016.0,0.14280288]
[1769035611896,0.13496749,3017.5,3016.0,0.00408204]